bitfinex/quotes_SOLUSD_20230904
["timestamp","ask_amount","ask_price","bid_price","bid_amount"]
[1693792215408,42.92642216,19.669,19.656,2.59750575]
[1693792215595,42.92642216,19.669,19.65,25.86]
[1693792215790,42.92642216,19.669,19.651,58.62271794]
[1693792216105,94.9724,19.668,19.651,58.62271794]
[1693792216298,94.9724,19.668,19.651,101.54913994]
[1693792216610,34.99542216,19.669,19.651,101.54913994]
[1693792217302,42.92642216,19.669,19.651,101.54913994]
[1693792218209,34.99542216,19.669,19.651,101.54913994]
[1693792219407,42.92642216,19.669,19.651,101.54913994]
[1693792222506,34.99542216,19.669,19.651,101.54913994]
[1693792226316,34.99542216,19.669,19.651,158.12223752]
[1693792229924,14.99542216,19.669,19.651,158.12223752]
[1693792232325,14.99542216,19.669,19.651,101.54913994]
[1693792235821,14.99542216,19.669,19.651,141.36195783]
[1693792243128,101.1523794,19.677,19.66,25.86]
[1693792243449,25.86,19.68,19.661,55.0]
[1693792243450,40.62665309,19.679,19.661,55.0]
[1693792243732,25.86,19.68,19.661,55.0]
[1693792243921,20.0,19.679,19.661,55.0]
[1693792244322,20.0,19.679,19.661,110.0]
[1693792250044,77.23087985,19.678,19.661,55.0]
[1693792250339,7.928,19.675,19.661,55.0]
[1693792250531,7.928,19.676,19.661,55.0]
[1693792250731,30.15887985,19.676,19.661,55.0]
[1693792252333,22.23087985,19.676,19.661,55.0]
[1693792253240,30.15887985,19.676,19.661,55.0]
[1693792254341,22.23087985,19.676,19.661,55.0]
[1693792254541,55.0,19.678,19.661,55.0]
[1693792255639,90.6225,19.677,19.661,55.0]
[1693792261844,98.5505,19.677,19.661,55.0]
[1693792263343,90.6225,19.677,19.661,55.0]
[1693792264147,98.5505,19.677,19.661,55.0]
[1693792267162,139.36026601,19.677,19.661,55.0]
[1693792276450,131.43226601,19.677,19.661,55.0]
[1693792281959,20.0,19.679,19.661,55.0]
[1693792294760,25.86,19.68,19.661,55.0]
[1693792294960,25.86,19.69,19.67,25.86]
[1693792295161,116.4553,19.689,19.671,55.0]
[1693792297666,138.68617985,19.689,19.671,55.0]
[1693792305984,26.54224247,19.688,19.671,55.0]
[1693792308460,48.77312232,19.688,19.671,55.0]
[1693792309170,22.23087985,19.688,19.671,55.0]
[1693792309374,22.23087985,19.688,19.671,110.0]
[1693792310681,30.15387985,19.688,19.671,55.0]
[1693792310972,85.15487985,19.687,19.664,15.56402438]
[1693792311165,85.15487985,19.687,19.665,20.0]
[1693792312075,77.23087985,19.687,19.665,20.0]
[1693792312277,77.23087985,19.687,19.666,55.0]
[1693792312476,77.23087985,19.687,19.667,20.0]
[1693792312677,77.23087985,19.687,19.668,55.0]
[1693792312876,77.23087985,19.687,19.669,20.0]
[1693792313074,77.23087985,19.687,19.67,25.86]
[1693792313269,77.23087985,19.687,19.671,55.0]
[1693792325789,117.14953769,19.687,19.671,55.0]
[1693792334099,117.14953769,19.687,19.67,55.0]
[1693792334503,117.14953769,19.687,19.669,20.0]
[1693792334801,117.14953769,19.687,19.67,55.0]
[1693792338898,117.14953769,19.687,19.669,20.0]
[1693792339493,11.763,19.686,19.669,20.0]
[1693792339699,55.0,19.685,19.665,20.0]
[1693792339902,55.0,19.685,19.664,15.56402438]
[1693792340102,25.86,19.68,19.665,20.0]
[1693792340599,25.86,19.68,19.666,55.0]
[1693792340801,25.86,19.68,19.667,20.0]
[1693792341892,25.86,19.68,19.665,56.573097]
[1693792342086,20.0,19.679,19.66,25.86]
[1693792342501,20.0,19.679,19.66,73.017221]
[1693792342703,93.1118,19.678,19.66,73.017221]
[1693792343399,93.1118,19.678,19.661,55.0]
[1693792347297,25.86,19.67,19.657,4.76277172]
[1693792347506,20.0,19.669,19.651,4.76277172]
[1693792347689,180.8349,19.669,19.651,4.76277172]
[1693792347897,172.9039,19.669,19.651,4.76277172]
[1693792348703,172.9039,19.669,19.651,30.62277172]
[1693792349006,172.9039,19.669,19.653,4.76277172]
[1693792356113,188.05649409,19.669,19.653,4.76277172]
[1693792358421,25.86,19.66,19.652,4.76277172]
[1693792358598,25.86,19.66,19.64,25.86]
[1693792358801,173.3886,19.659,19.641,4.76277172]
[1693792359905,173.3886,19.659,19.643,4.76277172]
[1693792360300,173.3886,19.659,19.641,4.76277172]
[1693792361512,173.3886,19.659,19.642,55.0]
[1693792361709,173.3886,19.659,19.643,4.76277172]
[1693792361912,173.3886,19.659,19.644,55.0]
[1693792362210,173.3886,19.659,19.645,4.76277172]
[1693792364119,173.3886,19.659,19.645,4.26277172]
[1693792366116,118.3886,19.659,19.645,4.26277172]
[1693792368127,118.3886,19.659,19.645,3.76277172]
[1693792370335,158.5759727,19.659,19.645,3.76277172]
[1693792373637,98.3886,19.659,19.645,3.76277172]
[1693792374038,98.3886,19.659,19.644,55.0]
[1693792374039,40.65139948,19.664,19.651,3.76277172]
[1693792374226,1.18183864,19.662,19.651,58.76277172]
[1693792374425,1.18183864,19.662,19.651,55.0]
[1693792375335,1.18183864,19.662,19.652,3.76277172]
[1693792375540,1.18183864,19.662,19.651,55.0]
[1693792375725,1.18183864,19.666,19.652,3.76277172]
[1693792375926,1.18183864,19.666,19.651,55.0]
[1693792376130,56.18183864,19.666,19.651,55.0]
[1693792376322,1.18183864,19.664,19.651,55.0]
[1693792376732,1.18183864,19.664,19.652,3.76277172]
[1693792379445,1.18183864,19.664,19.652,58.76277172]
[1693792379741,1.18183864,19.666,19.652,55.0]
[1693792379934,1.18183864,19.666,19.652,3.76277172]
[1693792381132,1.18183864,19.667,19.652,3.76277172]
[1693792381643,7.932,19.667,19.652,3.76277172]
[1693792381831,1.18183864,19.666,19.652,3.76277172]
[1693792382532,1.18183864,19.667,19.652,3.76277172]
[1693792385049,56.18183864,19.668,19.652,3.76277172]
[1693792385248,78.41271849,19.668,19.652,3.76277172]
[1693792386847,86.34371849,19.668,19.652,3.76277172]
[1693792387148,78.41271849,19.668,19.652,3.76277172]
[1693792387445,23.41271849,19.668,19.652,3.76277172]
[1693792387650,1.18183864,19.668,19.652,3.76277172]
[1693792398748,9.11283864,19.668,19.652,3.76277172]
[1693792398951,26.80683864,19.668,19.652,3.76277172]
[1693792399150,1.18183864,19.666,19.651,3.76277172]
[1693792399774,1.18183864,19.666,19.649,3.76277172]
[1693792400139,1.18183864,19.666,19.65,25.86]
[1693792400349,1.18183864,19.666,19.651,58.76277172]
[1693792401559,1.18183864,19.668,19.651,58.76277172]
[1693792401758,56.18183864,19.668,19.651,58.76277172]
[1693792406251,1.18183864,19.668,19.651,58.76277172]
[1693792412963,21.18183864,19.669,19.651,58.76277172]
[1693792417269,43.41271849,19.669,19.651,58.76277172]
[1693792417965,22.23087985,19.668,19.651,3.76277172]
[1693792418152,1.18183864,19.667,19.651,3.76277172]
[1693792419269,1.18183864,19.667,19.651,58.76277172]
[1693792424673,23.41271849,19.667,19.651,58.76277172]
[1693792424867,73.47950477,19.667,19.651,58.76277172]
[1693792425269,166.75720477,19.667,19.651,58.76277172]
[1693792433668,144.52632492,19.667,19.651,58.76277172]
[1693792440190,144.52632492,19.667,19.651,3.76277172]
[1693792441581,144.52632492,19.667,19.651,58.76277172]
[1693792449580,50.06678628,19.666,19.651,3.76277172]
[1693792449781,1.18183864,19.659,19.649,3.76277172]
[1693792449981,1.18183864,19.659,19.648,3.76277172]
[1693792450185,20.0,19.659,19.642,3.76277172]
[1693792450992,20.0,19.659,19.642,84.62277172]
[1693792451387,20.0,19.659,19.642,125.68129588]
[1693792480620,0.85556064,19.659,19.65,25.86]
[1693792480924,1.18183864,19.665,19.652,3.76277172]
[1693792488411,16.46428138,19.665,19.652,3.76277172]
[1693792493525,25.86,19.66,19.652,3.76277172]
[1693792493823,25.86,19.66,19.64,25.86]
[1693792493824,21.18183864,19.659,19.641,3.76277172]
[1693792494323,20.0,19.659,19.641,3.76277172]
[1693792494525,97.7744,19.658,19.641,3.76277172]
[1693792495412,97.7744,19.658,19.641,58.76277172]
[1693792525143,97.7744,19.658,19.641,100.38312795]
[1693792526645,97.7744,19.658,19.641,99.88312795]
[1693792528849,97.7744,19.658,19.641,58.26277172]
[1693792532350,55.0,19.657,19.641,3.26277172]
[1693792532544,55.0,19.657,19.633,46.52743303]
[1693792532545,55.0,19.657,19.635,3.26277172]
[1693792532753,62.936,19.657,19.635,3.26277172]
[1693792532943,55.0,19.657,19.64,25.86]
[1693792533145,55.0,19.657,19.641,3.26277172]
[1693792533450,55.0,19.657,19.641,58.26277172]
[1693792534552,97.7744,19.658,19.641,58.26277172]
[1693792535455,105.7094,19.658,19.641,58.26277172]
[1693792536455,97.7744,19.658,19.641,58.26277172]
[1693792536842,105.7094,19.658,19.641,58.26277172]
[1693792537158,97.7744,19.658,19.641,58.26277172]
[1693792543648,138.51536691,19.658,19.641,58.26277172]
[1693792545362,55.0,19.657,19.641,3.26277172]
[1693792545659,55.0,19.657,19.635,3.26277172]
[1693792546164,62.936,19.657,19.635,3.26277172]
[1693792546363,55.0,19.657,19.635,49.79020472]
[1693792546665,55.0,19.657,19.636,20.0]
[1693792546862,55.0,19.657,19.637,58.26277172]
[1693792547063,55.0,19.657,19.638,20.0]
[1693792547358,55.0,19.657,19.639,58.26277172]
[1693792561553,55.0,19.657,19.64,25.86]
[1693792561755,55.0,19.657,19.642,3.26277172]
[1693792561971,138.51536691,19.658,19.642,3.26277172]
[1693792567574,97.7744,19.658,19.642,58.26277172]
[1693792567870,97.7744,19.658,19.644,3.26277172]
[1693792571870,120.00527985,19.658,19.644,3.26277172]
[1693792572070,120.00527985,19.658,19.641,3.26277172]
[1693792572267,120.00527985,19.658,19.641,58.26277172]
[1693792580677,160.4449745,19.658,19.641,58.26277172]
[1693792596896,138.21409465,19.658,19.641,58.26277172]
[1693792598394,97.7744,19.658,19.641,58.26277172]
[1693792611612,64.87526445,19.662,19.65,25.86]
[1693792611820,1.68183864,19.661,19.651,58.26277172]
[1693792612119,1.68183864,19.665,19.651,58.26277172]
[1693792614696,15.36030534,19.667,19.651,58.26277172]
[1693792614899,1.68183864,19.666,19.651,58.26277172]
[1693792615300,1.68183864,19.666,19.651,98.58439972]
[1693792636733,1.68183864,19.669,19.651,98.58439972]
[1693792636935,21.68183864,19.669,19.651,98.58439972]
[1693792645360,21.68183864,19.669,19.651,140.02562109]
[1693792647751,21.68183864,19.669,19.651,155.49126994]
[1693792652874,21.68183864,19.669,19.651,100.49126994]
[1693792654255,21.68183864,19.669,19.652,55.0]
[1693792654451,21.68183864,19.669,19.653,3.26277172]
[1693792665372,43.9130303,19.669,19.653,3.26277172]
[1693792668278,1.68183864,19.667,19.653,3.26277172]
[1693792668975,86.8450303,19.667,19.653,3.26277172]
[1693792669178,86.8450303,19.667,19.651,40.321628]
[1693792669179,22.23119166,19.666,19.652,3.26277172]
[1693792669368,25.86,19.66,19.652,3.26277172]
[1693792669686,1.68183864,19.659,19.649,25.86]
[1693792669982,1.68183864,19.659,19.65,3.26277172]
[1693792670371,1.68183864,19.665,19.65,84.12277172]
[1693792671472,1.68183864,19.665,19.65,58.26277172]
[1693792678888,56.68183864,19.665,19.65,58.26277172]
[1693792679683,147.70583864,19.665,19.65,58.26277172]
[1693792681586,92.70583864,19.665,19.65,58.26277172]
[1693792683173,1.68183864,19.665,19.65,58.26277172]
[1693792683383,56.68183864,19.666,19.65,58.26277172]
[1693792683580,1.68183864,19.666,19.65,58.26277172]
[1693792683771,97.47303864,19.666,19.65,84.12277172]
[1693792684476,1.68183864,19.666,19.65,84.12277172]
[1693792684686,1.68183864,19.666,19.65,58.26277172]
[1693792685285,1.68183864,19.666,19.65,84.12277172]
[1693792689288,1.68183864,19.666,19.65,58.26277172]
[1693792689982,1.68183864,19.666,19.65,84.12277172]
[1693792703913,1.68183864,19.666,19.65,58.26277172]
[1693792704209,1.68183864,19.666,19.65,3.26277172]
[1693792704414,25.86,19.66,19.65,3.26277172]
[1693792704715,1.68183864,19.659,19.65,3.26277172]
[1693792704900,1.68183864,19.659,19.647,3.26277172]
[1693792705712,1.68183864,19.659,19.647,58.26277172]
[1693792705902,1.68183864,19.664,19.648,20.0]
[1693792706214,1.68183864,19.664,19.649,58.26277172]
[1693792706800,1.68183864,19.666,19.649,58.26277172]
[1693792714709,25.86,19.66,19.649,3.26277172]
[1693792714910,1.68183864,19.659,19.649,3.26277172]
[1693792715129,1.68183864,19.659,19.648,3.26277172]
[1693792716218,1.68183864,19.659,19.648,58.26277172]
[1693792716417,25.86,19.66,19.649,20.0]
[1693792716716,25.86,19.66,19.65,58.26277172]
[1693792717818,20.0,19.659,19.65,3.26277172]
[1693792718027,20.0,19.659,19.647,3.26277172]
[1693792718222,20.0,19.659,19.641,3.26277172]
[1693792719426,20.0,19.659,19.641,58.26277172]
[1693792727831,20.0,19.659,19.642,55.47576636]
[1693792728017,20.0,19.659,19.643,58.26277172]
[1693792733228,21.68183864,19.659,19.643,58.26277172]
[1693792738137,20.0,19.659,19.643,58.26277172]
[1693792741834,20.0,19.659,19.643,99.93198291]
[1693792742038,1.68183864,19.661,19.643,99.93198291]
[1693792742223,21.68183864,19.661,19.643,99.93198291]
[1693792742833,21.68183864,19.661,19.643,155.40675585]
[1693792763850,25.86,19.66,19.643,155.40675585]
[1693792764153,21.68183864,19.659,19.643,155.40675585]
[1693792764553,20.0,19.659,19.643,155.40675585]
[1693792772754,1.68183864,19.663,19.643,155.40675585]
[1693792772954,1.68183864,19.666,19.65,25.86]
[1693792773256,1.68183864,19.666,19.651,58.26277172]
[1693792774252,1.68183864,19.666,19.651,84.12277172]
[1693792775639,1.68183864,19.669,19.651,84.12277172]
[1693792775842,21.68183864,19.669,19.651,84.12277172]
[1693792782557,1.68183864,19.669,19.651,84.12277172]
[1693792782763,1.68183864,19.669,19.66,25.86]
[1693792782947,1.68183864,19.676,19.661,55.0]
[1693792783260,21.68183864,19.679,19.661,55.0]
[1693792784160,1.68183864,19.679,19.661,110.0]
[1693792785369,21.68183864,19.679,19.661,110.0]
[1693792791462,21.68183864,19.679,19.661,150.49618707]
[1693792800564,21.68183864,19.679,19.661,149.99618707]
[1693792800966,1.68183864,19.68,19.661,149.99618707]
[1693792801667,1.68183864,19.68,19.67,25.86]
[1693792801976,1.68183864,19.683,19.67,25.86]
[1693792802163,48.09574783,19.69,19.67,25.86]
[1693792802164,112.53873864,19.689,19.67,25.86]
[1693792802474,134.77448647,19.689,19.67,25.86]
[1693792802972,112.53873864,19.689,19.671,55.0]
[1693792804166,92.53873864,19.689,19.671,55.0]
[1693792804674,1.68183864,19.689,19.671,55.0]
[1693792804877,21.68183864,19.689,19.671,55.0]
[1693792806373,22.23574783,19.688,19.667,39.97559734]
[1693792806574,1.68183864,19.687,19.668,20.0]
[1693792806775,121.89498647,19.687,19.67,25.86]
[1693792807179,22.23574783,19.686,19.668,20.0]
[1693792807374,1.68183864,19.685,19.67,25.86]
[1693792808286,1.68183864,19.685,19.67,51.72]
[1693792808580,1.68183864,19.685,19.671,55.0]
[1693792810484,1.68183864,19.685,19.67,25.86]
[1693792810664,25.86,19.68,19.66,25.86]
[1693792810871,21.68183864,19.679,19.66,25.86]
[1693792811165,21.68183864,19.679,19.66,51.72]
[1693792811371,29.60883864,19.679,19.66,51.72]
[1693792811777,21.68183864,19.679,19.66,51.72]
[1693792812085,114.95173864,19.679,19.66,51.72]
[1693792812678,114.95173864,19.679,19.661,55.0]
[1693792826079,114.95173864,19.679,19.661,95.66734485]
[1693792835902,114.95173864,19.679,19.661,40.66734485]
[1693792836091,114.95173864,19.679,19.66,51.72]
[1693792837008,114.95173864,19.679,19.661,55.0]
[1693792850612,114.95173864,19.679,19.661,95.03255339]
[1693792852609,122.87873864,19.679,19.661,95.03255339]
[1693792853316,114.95173864,19.679,19.661,95.03255339]
[1693792856302,114.95173864,19.679,19.661,55.0]
[1693792871525,114.95173864,19.679,19.661,96.04577822]
[1693792895025,114.95173864,19.679,19.661,41.04577822]
[1693792895233,114.95173864,19.679,19.66,51.72]
[1693792896533,114.95173864,19.679,19.661,55.0]
[1693792900642,94.95173864,19.679,19.661,160.56642436]
[1693792900848,94.95173864,19.679,19.67,25.86]
[1693792900849,1.60783864,19.679,19.67,25.86]
[1693792901030,97.9452,19.684,19.67,25.86]
[1693792901348,1.60783864,19.683,19.67,25.86]
[1693792901528,1.60783864,19.683,19.671,55.0]
[1693792902037,1.60783864,19.689,19.671,55.0]
[1693792902333,21.60783864,19.689,19.671,55.0]
[1693792912049,1.60783864,19.689,19.671,55.0]
[1693792912242,1.60783864,19.689,19.68,25.86]
[1693792912543,99.4304,19.691,19.681,55.0]
[1693792912947,1.60783864,19.696,19.681,55.0]
[1693792913150,92.99713864,19.696,19.681,55.0]
[1693792913442,92.99713864,19.696,19.681,147.997139]
[1693792913647,1.60783864,19.696,19.681,147.997139]
[1693792918533,1.60783864,19.696,19.681,55.0]
[1693792919138,1.60783864,19.696,19.674,15.36280486]
[1693792919350,1.60783864,19.696,19.675,20.0]
[1693792920549,25.86,19.69,19.676,55.0]
[1693792920747,25.86,19.69,19.677,20.0]
[1693792921050,25.86,19.69,19.678,55.0]
[1693792921241,64.87720118,19.697,19.679,20.0]
[1693792921554,1.60783864,19.696,19.68,55.0]
[1693792925650,1.60783864,19.696,19.68,80.86]
[1693792925848,1.60783864,19.698,19.68,80.86]
[1693792927145,1.60783864,19.698,19.68,161.72]
[1693792928748,21.60783864,19.699,19.68,161.72]
[1693792953371,21.60783864,19.699,19.68,106.72]
[1693792954860,21.60783864,19.699,19.681,55.0]
[1693792966395,21.60783864,19.699,19.681,95.72357723]
[1693792979596,1.60783864,19.699,19.69,25.86]
[1693792979802,1.60783864,19.704,19.691,55.0]
[1693792980493,1.60783864,19.706,19.691,55.0]
[1693792982101,9.52383864,19.706,19.691,55.0]
[1693792983006,31.45523674,19.706,19.691,55.0]
[1693792983998,25.86,19.7,19.691,55.0]
[1693792984600,25.86,19.7,19.682,105.56642436]
[1693792984906,20.0,19.699,19.68,25.86]
[1693792985606,0.58998627,19.698,19.68,25.86]
[1693792985899,20.0,19.699,19.68,66.233984]
[1693792986104,0.5377442,19.698,19.68,66.233984]
[1693792987397,20.0,19.699,19.681,55.0]
[1693792990394,0.59716457,19.698,19.681,55.0]
[1693793034446,55.59716457,19.698,19.681,55.0]
[1693793034849,55.59716457,19.698,19.68,66.233984]
[1693793035539,0.59716457,19.698,19.68,66.233984]
[1693793036437,0.59716457,19.698,19.681,55.0]
[1693793039445,55.59716457,19.698,19.681,55.0]
[1693793040645,25.86,19.69,19.67,25.86]
[1693793040839,20.0,19.689,19.67,25.86]
[1693793041153,1.60783864,19.688,19.67,25.86]
[1693793042148,1.60783864,19.688,19.671,55.0]
[1693793046533,20.0,19.689,19.671,55.0]
[1693793046948,0.68009497,19.688,19.671,55.0]
[1693793047443,20.0,19.689,19.671,55.0]
[1693793048741,34.91463413,19.689,19.671,55.0]
[1693793050846,0.6175409,19.688,19.671,55.0]
[1693793051437,34.91463413,19.689,19.671,55.0]
[1693793051952,0.70328459,19.688,19.671,55.0]
[1693793052640,34.91463413,19.689,19.671,55.0]
[1693793053037,0.53661104,19.688,19.671,55.0]
[1693793053343,34.91463413,19.689,19.671,55.0]
[1693793054652,25.86,19.69,19.671,55.0]
[1693793054848,20.0,19.689,19.671,55.0]
[1693793056633,20.0,19.689,19.671,95.44738179]
[1693793064050,0.64114028,19.688,19.671,95.44738179]
[1693793064361,0.64114028,19.688,19.671,110.69140822]
[1693793066653,20.0,19.689,19.671,110.69140822]
[1693793070151,0.65657501,19.688,19.671,110.69140822]
[1693793070354,20.0,19.689,19.671,110.69140822]
[1693793075766,0.50825151,19.688,19.671,95.44738179]
[1693793076463,20.0,19.689,19.671,95.44738179]
[1693793077557,0.62991234,19.688,19.671,95.44738179]
[1693793077963,20.0,19.689,19.671,95.44738179]
[1693793078164,0.68524641,19.688,19.671,95.44738179]
[1693793082360,20.0,19.689,19.671,95.44738179]
[1693793082858,0.62240126,19.688,19.671,95.44738179]
[1693793089373,0.62240126,19.688,19.67,51.72]
[1693793090857,0.62240126,19.688,19.671,55.0]
[1693793100580,0.62240126,19.688,19.671,101.7694292]
[1693793100780,0.62240126,19.688,19.671,127.19259827]
[1693793101089,1.60783864,19.695,19.68,25.86]
[1693793101379,401.4,19.696,19.681,55.0]
[1693793101380,1.60783864,19.696,19.681,55.0]
[1693793101786,1.60783864,19.699,19.681,55.0]
[1693793101966,21.60783864,19.699,19.681,147.1647]
[1693793117094,21.60783864,19.699,19.681,187.82323658]
[1693793122595,21.60783864,19.699,19.681,132.82323658]
[1693793123986,21.60783864,19.699,19.682,55.0]
[1693793146819,1.60783864,19.699,19.69,25.86]
[1693793147017,1.60783864,19.705,19.691,55.0]
[1693793147511,1.60783864,19.706,19.691,55.0]
[1693793148519,1.60783864,19.706,19.691,80.86]
[1693793157622,0.60783864,19.706,19.691,80.86]
[1693793189545,20.60783864,19.709,19.691,80.86]
[1693793190740,35.77991985,19.709,19.691,80.86]
[1693793206652,57.71088642,19.709,19.691,80.86]
[1693793222567,21.93096657,19.708,19.691,25.86]
[1693793222762,25.86,19.7,19.684,0.96615147]
[1693793222950,0.60783864,19.699,19.682,40.18274111]
[1693793223152,20.60783864,19.699,19.681,0.96615147]
[1693793223358,20.60783864,19.699,19.682,25.86]
[1693793223566,20.60783864,19.699,19.683,0.96615147]
[1693793224068,20.0,19.699,19.683,0.96615147]
[1693793224269,20.0,19.699,19.683,55.96615147]
[1693793226354,0.5408033,19.698,19.683,55.96615147]
[1693793226557,20.0,19.699,19.683,55.96615147]
[1693793227673,0.55114003,19.698,19.683,55.96615147]
[1693793229168,20.0,19.699,19.683,55.96615147]
[1693793229557,55.0,19.698,19.683,0.96615147]
[1693793229758,0.60783864,19.697,19.683,0.96615147]
[1693793230063,55.0,19.698,19.683,0.96615147]
[1693793230870,55.0,19.698,19.683,55.96615147]
[1693793231074,62.919,19.698,19.683,55.96615147]
[1693793231268,0.60783864,19.697,19.683,0.96615147]
[1693793231451,25.86,19.69,19.681,2.0052862]
[1693793231866,83.53083864,19.689,19.681,2.0052862]
[1693793232073,75.60783864,19.689,19.681,2.0052862]
[1693793232473,75.60783864,19.689,19.673,25.86]
[1693793232660,75.60783864,19.689,19.674,0.96615147]
[1693793233073,170.07533864,19.689,19.674,55.96615147]
[1693793235067,169.4675,19.689,19.674,55.96615147]
[1693793235370,0.54988215,19.688,19.674,55.96615147]
[1693793235573,169.4675,19.689,19.674,55.96615147]
[1693793235781,0.60783864,19.688,19.674,55.96615147]
[1693793236776,75.0,19.689,19.674,55.96615147]
[1693793237170,96.8086,19.688,19.674,55.96615147]
[1693793237679,0.60783864,19.687,19.674,55.96615147]
[1693793237861,0.60783864,19.688,19.674,55.96615147]
[1693793240874,114.69903405,19.689,19.674,55.96615147]
[1693793244573,130.14590745,19.689,19.674,55.96615147]
[1693793246184,0.5146082,19.688,19.674,55.96615147]
[1693793246593,130.14590745,19.689,19.674,55.96615147]
[1693793246883,0.60783864,19.688,19.674,55.96615147]
[1693793247982,0.5877766,19.688,19.674,55.96615147]
[1693793250286,0.60783864,19.689,19.674,55.96615147]
[1693793250580,20.0,19.689,19.674,55.96615147]
[1693793252282,0.52370485,19.688,19.674,55.96615147]
[1693793254872,20.0,19.689,19.674,55.96615147]
[1693793256787,0.60783864,19.688,19.674,55.96615147]
[1693793259195,20.0,19.689,19.674,0.96615147]
[1693793260471,64.35992627,19.698,19.674,0.96615147]
[1693793260677,0.60783864,19.696,19.68,25.86]
[1693793260884,95.81993864,19.699,19.681,55.96615147]
[1693793261282,0.60783864,19.699,19.681,55.96615147]
[1693793261486,20.60783864,19.699,19.681,151.78608947]
[1693793263089,35.4706435,19.699,19.681,151.78608947]
[1693793269980,20.60783864,19.699,19.681,151.78608947]
[1693793273801,20.60783864,19.699,19.681,192.21698377]
[1693793279399,0.60783864,19.699,19.69,25.86]
[1693793279600,95.2121,19.702,19.691,55.0]
[1693793280003,0.60783864,19.701,19.691,55.0]
[1693793280506,0.60783864,19.706,19.691,55.0]
[1693793344983,0.60783864,19.713,19.691,55.0]
[1693793345189,0.60783864,19.714,19.691,55.0]
[1693793345395,20.60783864,19.714,19.691,55.0]
[1693793346876,60.46976756,19.714,19.691,55.0]
[1693793349896,75.84743252,19.714,19.691,55.0]
[1693793355599,75.84743252,19.714,19.691,70.36091369]
[1693793357399,75.84743252,19.714,19.691,111.16538296]
[1693793377807,75.34743252,19.714,19.692,0.89215147]
[1693793391819,75.34743252,19.714,19.692,26.31532054]
[1693793392017,75.34743252,19.714,19.693,55.0]
[1693793392213,75.34743252,19.714,19.694,1.39215147]
[1693793393516,0.10783864,19.714,19.701,1.39215147]
[1693793393702,0.10783864,19.714,19.701,56.39215147]
[1693793404428,0.10783864,19.714,19.701,1.39215147]
[1693793404624,25.86,19.71,19.701,1.39215147]
[1693793404830,20.0,19.709,19.695,1.39215147]
[1693793405448,25.86,19.71,19.695,1.39215147]
[1693793405632,20.0,19.709,19.695,1.39215147]
[1693793405932,20.0,19.709,19.695,56.39215147]
[1693793411035,96.2275,19.713,19.7,25.86]
[1693793411335,96.2275,19.713,19.701,56.39215147]
[1693793411923,0.10783864,19.714,19.701,56.39215147]
[1693793415042,0.10783864,19.714,19.701,97.83783747]
[1693793442768,14.94134117,19.715,19.701,97.83783747]
[1693793446166,19.5,19.719,19.701,97.83783747]
[1693793447568,41.45090448,19.719,19.701,97.83783747]
[1693793456369,38.95090448,19.719,19.701,97.83783747]
[1693793461477,79.39760498,19.719,19.701,97.83783747]
[1693793461674,38.95090448,19.719,19.701,97.83783747]
[1693793466685,17.0,19.719,19.701,97.83783747]
[1693793469485,38.95090448,19.719,19.701,97.83783747]
[1693793483698,79.29202122,19.719,19.701,97.83783747]
[1693793502297,79.29202122,19.719,19.701,56.39215147]
[1693793502514,55.0,19.718,19.701,56.39215147]
[1693793504514,21.70680654,19.717,19.701,1.39215147]
[1693793504811,21.70680654,19.717,19.699,79.292021]
[1693793504812,55.0,19.716,19.7,4.94461036]
[1693793504998,55.0,19.716,19.699,79.292021]
[1693793504999,76.70680654,19.716,19.694,4.94461036]
[1693793505195,76.70680654,19.716,19.694,24.94461036]
[1693793505399,120.65720654,19.715,19.694,65.01364588]
[1693793505701,120.65720654,19.715,19.694,24.94461036]
[1693793505902,120.65720654,19.715,19.695,55.0]
[1693793506104,120.65720654,19.715,19.696,4.94461036]
[1693793506417,120.65720654,19.715,19.697,55.0]
[1693793506601,120.65720654,19.715,19.698,24.94461036]
[1693793506911,120.65720654,19.715,19.7,4.94461036]